bitfinex/quotes_BTCUSD_20241223
["timestamp","ask_amount","ask_price","bid_price","bid_amount"]
[1734914802315,0.003,94656.0,94647.0,0.290611]
[1734914802543,0.21128,94661.0,94648.0,0.00105641]
[1734914802895,0.003,94656.0,94649.0,0.211307]
[1734914803014,0.003,94656.0,94651.0,0.211302]
[1734914803218,0.023,94659.0,94651.0,0.211302]
[1734914803646,0.023,94659.0,94647.0,0.0936859]
[1734914803852,0.023,94659.0,94648.0,0.2123654]
[1734914804046,0.023,94659.0,94648.0,0.211309]
[1734914804253,0.023,94659.0,94649.0,0.0010564]
[1734914804462,0.023,94659.0,94647.0,0.0936859]
[1734914804743,0.445571,94659.0,94647.0,0.0936859]
[1734914804945,0.234285,94659.0,94658.0,0.02134628]
[1734914805349,0.023,94659.0,94658.0,0.02134628]
[1734914805793,0.026,94659.0,94658.0,0.02134628]
[1734914805994,0.023,94659.0,94658.0,0.02134628]
[1734914806480,0.025,94659.0,94658.0,0.02134628]
[1734914807103,0.025,94659.0,94647.0,0.0936859]
[1734914807104,0.1263084,94659.0,94647.0,0.0143859]
[1734914807304,0.211301,94652.0,94647.0,0.0143859]
[1734914807505,0.234301,94652.0,94651.0,0.02120456]
[1734914808890,0.023,94656.0,94651.0,0.02320456]
[1734914809092,0.12880773,94700.0,94651.0,0.02320456]
[1734914809292,0.023,94673.0,94658.0,0.211286]
[1734914809525,0.1013084,94673.0,94665.0,0.211269]
[1734914810087,0.1013084,94673.0,94672.0,0.02079211]
[1734914810929,0.1243084,94673.0,94672.0,0.02079211]
[1734914811741,0.1313084,94673.0,94672.0,0.02079211]
[1734914811965,0.1243084,94673.0,94672.0,0.02079211]
[1734914812338,0.1263084,94673.0,94672.0,0.02079211]
[1734914812549,0.211229,94684.0,94672.0,0.02079211]
[1734914812756,0.023,94682.0,94672.0,0.02079211]
[1734914812963,0.1013084,94681.0,94672.0,0.02179211]
[1734914813396,0.023,94680.0,94672.0,0.02179211]
[1734914813643,0.023,94678.0,94672.0,0.02179211]
[1734914813847,0.023,94683.0,94673.0,0.286553]
[1734914814194,0.0751,94709.0,94673.0,0.0753]
[1734914814402,0.000171,94710.0,94690.0,0.0763]
[1734914814624,0.211342,94710.0,94691.0,0.211213]
[1734914815235,0.000171,94710.0,94697.0,0.211199]
[1734914815849,0.0010855,94699.0,94697.0,0.211199]
[1734914815974,0.0010855,94699.0,94698.0,0.02087734]
[1734914816180,8.55e-05,94699.0,94698.0,0.02087734]
[1734914816579,0.000171,94710.0,94698.0,0.02087734]
[1734914816782,0.00071179,94710.0,94701.0,0.211191]
[1734914817567,0.00071179,94710.0,94698.0,0.02087734]
[1734914817822,0.21188279,94710.0,94698.0,0.02087734]
[1734914818209,0.21188279,94710.0,94698.0,0.02487734]
[1734914818610,0.21188279,94710.0,94698.0,0.02087734]
[1734914819494,0.445346,94709.0,94698.0,0.02087734]
[1734914819715,0.211177,94707.0,94698.0,0.02087734]
[1734914819919,0.211182,94705.0,94698.0,0.02087734]
[1734914820125,0.023,94704.0,94698.0,0.02087734]
[1734914820530,0.211182,94705.0,94690.0,0.01437873]
[1734914820531,0.2112,94697.0,94690.0,0.01437873]
[1734914820735,0.211204,94695.0,94673.0,0.1497]
[1734914820988,0.1243084,94694.0,94675.0,0.211247]
[1734914821309,0.211182,94705.0,94691.0,0.02156444]
[1734914821528,0.023,94703.0,94691.0,0.02156444]
[1734914821892,0.023,94701.0,94691.0,0.02156444]
[1734914822093,0.009,94695.0,94691.0,0.02156444]
[1734914822445,0.211173,94709.0,94691.0,0.02156444]
[1734914822626,0.023,94707.0,94691.0,0.02356444]
[1734914822822,0.211182,94705.0,94691.0,0.02356444]
[1734914823027,0.211182,94705.0,94691.0,0.02156444]
[1734914823225,0.023,94706.0,94691.0,0.02256444]
[1734914823427,0.023,94706.0,94692.0,0.42242]
[1734914824217,0.00071179,94710.0,94698.0,0.211196]
[1734914824415,0.00071179,94710.0,94685.0,0.1]
[1734914824604,0.00071179,94710.0,94703.0,0.211184]
[1734914824815,0.00071179,94710.0,94703.0,0.2328182]
[1734914824965,0.003,94707.0,94703.0,0.0216342]
[1734914825180,0.00071179,94710.0,94703.0,0.0216342]
[1734914825377,0.00071179,94710.0,94704.0,0.211184]
[1734914825581,0.00471179,94710.0,94704.0,0.422368]
[1734914825789,0.00071179,94710.0,94704.0,0.422368]
[1734914825990,0.00071179,94710.0,94704.0,0.211184]
[1734914826196,0.001,94707.0,94706.0,0.422358]
[1734914826392,0.00071179,94710.0,94706.0,0.422358]
[1734914827140,0.00071179,94710.0,94708.0,0.211175]
[1734914827364,0.00071179,94710.0,94709.0,0.15]
[1734914827569,0.00071179,94710.0,94709.0,0.25]
[1734914827775,0.00071179,94710.0,94709.0,1.1979534]
[1734914827980,0.211083,94750.0,94728.0,0.19298448]
[1734914828183,0.00024757,94738.0,94734.0,0.422231]
[1734914828355,0.00024757,94738.0,94734.0,0.211115]
[1734914828559,0.00024757,94738.0,94722.0,0.1]
[1734914828760,0.00024757,94738.0,94720.0,0.34298448]
[1734914828761,0.00024757,94738.0,94723.0,0.211141]
[1734914829106,0.00024757,94738.0,94720.0,0.15]
[1734914829258,0.21111,94737.0,94728.0,0.004]
[1734914829461,0.211124,94731.0,94715.0,0.211158]
[1734914829622,0.211112,94736.0,94720.0,0.211146]
[1734914829823,0.00024757,94738.0,94720.0,0.211146]
[1734914830145,0.00024757,94738.0,94728.0,0.02147972]
[1734914830146,0.34466597,94738.0,94728.0,0.02147972]
[1734914830826,0.21111,94737.0,94728.0,0.02147972]
[1734914830999,0.023,94736.0,94728.0,0.02147972]
[1734914831245,0.00924757,94738.0,94729.0,0.211128]
[1734914831515,0.00024757,94738.0,94729.0,0.211128]
[1734914831742,0.009,94731.0,94729.0,0.211128]
[1734914831874,0.00024757,94738.0,94728.0,0.02147972]
[1734914832283,0.00024757,94738.0,94728.0,0.2144642]
[1734914832507,0.00024757,94738.0,94732.0,0.21112]
[1734914834419,0.00024757,94738.0,94729.0,0.211128]
[1734914834632,0.00024757,94738.0,94728.0,0.02347972]
[1734914834839,0.00024757,94738.0,94729.0,0.211128]
[1734914835246,0.00024757,94738.0,94732.0,0.002]
[1734914835452,0.00024757,94738.0,94730.0,0.211126]
[1734914835898,0.00224757,94738.0,94729.0,0.211128]
[1734914836097,0.00024757,94738.0,94729.0,0.211128]
[1734914836304,0.00024757,94738.0,94728.0,0.02147972]
[1734914836504,0.00024757,94738.0,94733.0,0.211119]
[1734914837181,0.00024757,94738.0,94732.0,0.001]
[1734914837733,0.00024757,94738.0,94728.0,0.02147972]
[1734914838328,0.211124,94731.0,94728.0,0.02147972]
[1734914838773,0.211124,94731.0,94713.0,0.15]
[1734914838972,0.211124,94731.0,94715.0,0.15]
[1734914839474,0.211124,94731.0,94728.0,0.002]
[1734914839615,0.201124,94731.0,94728.0,0.002]
[1734914839953,0.02324757,94738.0,94717.0,0.15]
[1734914840154,0.00024757,94738.0,94726.0,0.02159805]
[1734914840459,0.00024757,94738.0,94733.0,0.211118]
[1734914842245,0.00024757,94738.0,94733.0,0.212118]
[1734914842668,0.00024757,94738.0,94733.0,0.211118]
[1734914843001,0.00024757,94738.0,94733.0,0.214118]
[1734914844570,0.00024757,94738.0,94734.0,0.15]
[1734914844784,0.00024757,94738.0,94736.0,0.15]
[1734914845146,0.00024757,94738.0,94737.0,0.547796]
[1734914845490,0.00024757,94738.0,94737.0,0.7770044]
[1734914846110,0.00124757,94738.0,94737.0,0.7770044]
[1734914846343,0.00024757,94738.0,94737.0,0.7770044]
[1734914846720,0.00124757,94738.0,94737.0,0.7840044]
[1734914847907,0.00124757,94738.0,94737.0,0.8840044]
[1734914848109,8.55e-05,94767.0,94757.0,0.211066]
[1734914849349,8.55e-05,94767.0,94754.0,0.21107]
[1734914849602,0.0010855,94758.0,94757.0,0.005]
[1734914849811,8.55e-05,94758.0,94756.0,0.15]
[1734914850049,8.55e-05,94758.0,94757.0,0.211066]
[1734914850464,8.55e-05,94758.0,94757.0,0.361066]
[1734914851261,0.0010855,94758.0,94757.0,0.367066]
[1734914851616,8.55e-05,94758.0,94757.0,0.38253102]
[1734914851827,0.0010855,94758.0,94757.0,0.38953102]
[1734914852163,0.0010855,94758.0,94757.0,0.02846502]
[1734914858445,0.0010855,94758.0,94757.0,0.12846502]
[1734914858701,0.0010855,94758.0,94757.0,0.46187342]
[1734914859592,0.0010855,94758.0,94757.0,1.15916642]
[1734914859800,0.0010855,94758.0,94757.0,1.03525242]
[1734914860964,8.55e-05,94767.0,94765.0,0.1]
[1734914861182,0.00024751,94767.0,94766.0,0.883067]
[1734914861609,0.00024751,94767.0,94766.0,0.584048]
[1734914862390,0.00024751,94767.0,94766.0,0.524125]
[1734914862633,0.00724751,94767.0,94766.0,0.507399]
[1734914862776,0.00724751,94767.0,94766.0,0.506399]
[1734914863203,0.00724751,94767.0,94766.0,0.489996]
[1734914864266,0.01324751,94767.0,94766.0,0.5787164]
[1734914864467,0.00024751,94767.0,94766.0,0.3676704]
[1734914865050,0.00724751,94767.0,94766.0,0.3686704]
[1734914865183,0.00724751,94767.0,94766.0,0.3676704]
[1734914865385,0.01224751,94767.0,94766.0,0.2513084]
[1734914865611,0.01224751,94767.0,94766.0,0.6620004]
[1734914865813,0.00024751,94767.0,94766.0,0.6427304]
[1734914866016,0.00624751,94767.0,94766.0,0.70365166]
[1734914866805,0.00624751,94767.0,94766.0,0.47600766]
[1734914867587,0.00024751,94767.0,94766.0,0.47500766]
[1734914867978,0.00024751,94767.0,94766.0,0.37369926]
[1734914868180,0.00524751,94767.0,94766.0,0.37369926]
[1734914868795,0.01024751,94767.0,94766.0,0.37369926]
[1734914869005,0.00524751,94767.0,94766.0,0.37369926]
[1734914869417,0.00624751,94767.0,94766.0,0.01965326]
[1734914869626,0.00624751,94767.0,94766.0,0.01265326]
[1734914869627,0.00124751,94767.0,94766.0,0.01265326]
[1734914869832,0.00024751,94767.0,94766.0,0.01265326]
[1734914870037,0.21229051,94767.0,94766.0,0.009]
[1734914870866,0.00124751,94767.0,94766.0,0.009]
[1734914871287,0.00024751,94767.0,94758.0,0.01325063]
[1734914871492,0.00024751,94767.0,94764.0,0.211048]
[1734914871629,0.00124751,94767.0,94766.0,0.007]
[1734914872030,0.00024751,94767.0,94764.0,0.211048]
[1734914872227,0.00024751,94767.0,94766.0,0.002]
[1734914872615,0.00024751,94767.0,94764.0,0.211048]
[1734914872811,0.00024751,94767.0,94757.0,0.16310956]
[1734914872812,0.00024751,94767.0,94759.0,0.211061]
[1734914873021,0.00124751,94767.0,94766.0,0.007]
[1734914873223,0.00024751,94767.0,94759.0,0.211061]
[1734914873395,0.00024751,94767.0,94757.0,0.2457394]
[1734914873611,0.211046,94766.0,94757.0,0.0346754]
[1734914873810,0.286346,94766.0,94757.0,0.0346754]
[1734914875348,0.0753,94766.0,94757.0,0.0346754]
[1734914875546,0.0753,94766.0,94757.0,0.0366754]
[1734914875949,0.0753,94766.0,94757.0,0.0346754]
[1734914877126,0.0753,94766.0,94758.0,0.211063]
[1734914877303,0.00024751,94767.0,94763.0,0.21105]
[1734914877505,0.00024751,94767.0,94757.0,0.16310956]
[1734914877736,0.00024751,94767.0,94757.0,0.0346754]
[1734914877898,0.00024751,94767.0,94759.0,0.211061]
[1734914878304,0.00024751,94767.0,94766.0,0.211046]
[1734914878488,0.00024751,94767.0,94766.0,0.451921]
[1734914878693,0.00024751,94767.0,94766.0,0.450927]
[1734914879823,0.00024751,94767.0,94766.0,0.364981]
[1734914880203,0.00024751,94767.0,94766.0,0.214046]
[1734914880411,0.00024751,94767.0,94766.0,0.355246]
[1734914880941,0.00024751,94767.0,94766.0,0.214046]
[1734914881191,0.00024751,94767.0,94766.0,0.211046]
[1734914881390,0.00024751,94767.0,94766.0,0.341226]
[1734914881798,0.00024751,94767.0,94766.0,0.337226]
[1734914882212,0.00924751,94767.0,94766.0,0.338226]
[1734914882408,0.00924751,94767.0,94766.0,0.337226]
[1734914882608,0.00924751,94767.0,94760.0,0.15]
[1734914882809,0.01524751,94767.0,94766.0,0.001]
[1734914884266,0.00024751,94767.0,94757.0,0.1846754]
[1734914884437,0.00424751,94767.0,94757.0,0.1846754]
[1734914884823,0.00424751,94767.0,94757.0,0.0346754]
[1734914885199,0.211056,94762.0,94757.0,0.0346754]
[1734914885554,0.259346,94766.0,94757.0,0.0346754]
[1734914885762,0.259346,94766.0,94757.0,0.0406754]
[1734914885940,0.259346,94766.0,94757.0,0.0346754]
[1734914886352,0.00024751,94767.0,94757.0,0.2457414]
[1734914886552,0.00024751,94767.0,94757.0,0.0346754]
[1734914886950,0.00024751,94767.0,94758.0,0.211063]
[1734914887378,0.008,94762.0,94758.0,0.211063]
[1734914887580,0.008,94762.0,94758.0,0.422126]
[1734914887780,0.00024751,94767.0,94764.0,0.211048]
[1734914889139,0.00024751,94767.0,94761.0,0.15]
[1734914889341,0.00124751,94767.0,94764.0,0.006]
[1734914889473,0.00124751,94767.0,94765.0,0.211048]
[1734914889671,0.00124751,94767.0,94765.0,0.30503611]
[1734914890376,0.00124751,94767.0,94766.0,0.1013084]
[1734914890577,0.00024751,94767.0,94766.0,0.3513084]
[1734914890922,0.00124751,94767.0,94766.0,0.3513084]
[1734914891126,0.00024751,94767.0,94766.0,0.3513084]
[1734914891534,0.00124751,94767.0,94766.0,0.3573084]
[1734914891761,0.00024751,94767.0,94766.0,0.3513084]
[1734914891986,0.00024751,94767.0,94766.0,0.25]
[1734914892187,0.00124751,94767.0,94766.0,0.69437628]
[1734914892606,0.00024751,94767.0,94766.0,0.68837628]
[1734914892806,0.00024751,94767.0,94766.0,0.78837628]
[1734914893519,0.00024751,94767.0,94766.0,0.15]
[1734914893747,0.00024751,94767.0,94766.0,0.25]
[1734914893927,0.00124751,94767.0,94766.0,0.256]
[1734914894283,0.00024751,94767.0,94766.0,0.25]
[1734914894628,0.00124751,94767.0,94766.0,0.156]
[1734914894803,0.00124751,94767.0,94764.0,0.33845149]
[1734914894985,0.00124751,94767.0,94766.0,0.15]
[1734914895189,0.01024751,94767.0,94766.0,0.151]
[1734914895393,0.00924751,94767.0,94766.0,0.2513084]
[1734914895594,0.00924751,94767.0,94766.0,0.51519374]
[1734914895798,0.01024751,94767.0,94766.0,0.25082734]
[1734914896981,0.01024751,94767.0,94766.0,0.156]
[1734914897209,0.00024751,94767.0,94766.0,0.15]
[1734914897361,0.00924751,94767.0,94766.0,0.151]
[1734914897563,0.00924751,94767.0,94766.0,0.150171]
[1734914898085,0.01024751,94767.0,94766.0,0.158171]
[1734914898389,0.00024751,94767.0,94766.0,0.150171]
[1734914898542,0.00124751,94767.0,94766.0,0.158171]
[1734914898746,0.00124751,94767.0,94766.0,0.150171]
[1734914899511,0.00124751,94767.0,94766.0,0.2514794]
[1734914900247,0.00224751,94767.0,94766.0,0.2594794]
[1734914900673,0.00024751,94767.0,94766.0,0.2514794]
[1734914900872,0.00024751,94767.0,94766.0,0.60150569]
[1734914901151,0.00124751,94767.0,94766.0,0.61050569]
[1734914901365,0.00124751,94767.0,94766.0,1.07955269]
[1734914901829,0.00024751,94767.0,94766.0,1.07055269]
[1734914902031,0.00724751,94767.0,94766.0,1.17155269]
[1734914903061,0.00724751,94767.0,94766.0,1.39785269]
[1734914903358,0.00724751,94767.0,94766.0,1.29785269]
[1734914903498,0.00024751,94767.0,94766.0,1.29685269]
[1734914903700,0.00124751,94767.0,94766.0,1.30585269]
[1734914903931,0.00124751,94767.0,94766.0,0.78970569]
[1734914904136,0.00024751,94767.0,94766.0,0.88399069]
[1734914904337,0.00524751,94767.0,94766.0,0.88399069]
[1734914904824,0.00024751,94767.0,94766.0,0.88399069]
[1734914905105,0.0751,94793.0,94782.0,0.211008]
[1734914905461,0.00532312,94788.0,94782.0,0.211008]
[1734914905865,0.0751,94793.0,94782.0,0.211008]
[1734914906564,7e-05,94800.0,94787.0,0.210997]
[1734914906759,7e-05,94800.0,94788.0,0.2013084]
[1734914906988,7e-05,94800.0,94788.0,0.3513084]
[1734914907821,7e-05,94800.0,94788.0,0.5918374]
[1734914908002,7e-05,94800.0,94788.0,0.5292184]
[1734914908148,7e-05,94800.0,94788.0,0.5013164]
[1734914908354,7e-05,94800.0,94788.0,0.52721023]
[1734914908764,7e-05,94800.0,94788.0,1.0616387]
[1734914909160,7e-05,94800.0,94788.0,1.0165117]
[1734914909623,7e-05,94800.0,94788.0,1.1165117]
[1734914910032,7e-05,94800.0,94788.0,0.92687887]
[1734914910201,0.0010855,94789.0,94788.0,0.93387887]
[1734914910428,8.55e-05,94789.0,94788.0,0.92687887]
[1734914910780,0.0090855,94789.0,94788.0,0.92787887]
[1734914913761,0.0090855,94789.0,94788.0,0.62299787]
[1734914913966,0.0090855,94789.0,94788.0,0.52168947]
[1734914915013,8.55e-05,94789.0,94788.0,0.52068947]
[1734914915307,0.0090855,94789.0,94788.0,0.02189383]
[1734914915797,0.01455956,94789.0,94788.0,0.02189383]
[1734914916657,8.55e-05,94789.0,94788.0,0.02089383]
[1734914916859,0.0070855,94789.0,94788.0,0.02189383]
[1734914917262,0.0070855,94789.0,94788.0,0.02089383]
[1734914917263,0.00555956,94789.0,94788.0,0.02089383]
[1734914917664,0.00655956,94789.0,94788.0,0.02889383]
[1734914919755,0.25536796,94789.0,94788.0,0.008]
[1734914920573,0.0825,94786.0,94769.0,0.09457481]
[1734914920887,0.316537,94770.0,94769.0,0.01224339]
[1734914921085,0.6288844,94770.0,94761.0,0.09457481]
[1734914921341,0.211041,94768.0,94761.0,0.09457481]
[1734914921759,0.00536259,94767.0,94763.0,0.02092975]
[1734914921910,0.05648162,94767.0,94763.0,0.02092975]
[1734914922320,0.05516259,94767.0,94763.0,0.02092975]
[1734914924073,0.05516259,94767.0,94766.0,0.001171]
[1734914924428,0.211061,94760.0,94746.0,0.21109]
[1734914924654,0.211061,94760.0,94757.0,0.00016201]
[1734914924848,0.00535873,94759.0,94757.0,0.00016201]
[1734914925322,0.00535873,94759.0,94758.0,0.02077526]
[1734914925530,0.0825,94770.0,94758.0,0.02077526]
[1734914925531,0.293538,94770.0,94758.0,0.02077526]
[1734914925812,0.0053086,94769.0,94759.0,0.211061]
[1734914926166,0.0825,94770.0,94759.0,0.211061]
[1734914926371,0.0053086,94769.0,94760.0,0.211059]
[1734914926568,0.21102,94778.0,94760.0,0.211059]
[1734914926807,0.211037,94770.0,94758.0,0.02077526]
[1734914927156,0.00531824,94769.0,94758.0,0.02077526]
[1734914927459,0.00531824,94769.0,94759.0,0.211061]
[1734914927768,0.001,94769.0,94758.0,0.02077526]
[1734914927973,0.234019,94778.0,94759.0,0.211061]
[1734914928130,0.00531776,94768.0,94759.0,0.211061]
[1734914928308,0.001,94770.0,94759.0,0.211061]
[1734914928512,0.211033,94772.0,94759.0,0.211061]
[1734914928710,0.211019,94778.0,94760.0,0.211059]
[1734914928912,0.00531593,94771.0,94760.0,0.211059]
[1734914929118,0.422038,94778.0,94760.0,0.211059]
[1734914929526,0.211023,94776.0,94760.0,0.211059]
[1734914929727,0.00531834,94777.0,94760.0,0.211059]
[1734914929945,0.00531737,94775.0,94766.0,0.211044]
[1734914930147,0.00531785,94776.0,94766.0,0.211044]
[1734914930467,0.00531737,94775.0,94766.0,0.211044]
[1734914930664,0.211021,94777.0,94761.0,0.211055]
[1734914930844,0.00531689,94774.0,94767.0,0.211041]
[1734914931188,0.001,94775.0,94763.0,0.211051]
[1734914931516,0.00531689,94774.0,94773.0,0.02119527]
[1734914933122,0.0811,94779.0,94773.0,0.02119527]
[1734914933321,0.001,94774.0,94773.0,0.02119527]
[1734914933720,0.00525966,94774.0,94773.0,0.02119527]
[1734914933919,0.00634526,94774.0,94773.0,0.02119527]
[1734914934120,0.13197255,94774.0,94773.0,0.02119527]
[1734914934344,0.211057,94762.0,94757.0,0.01264797]
[1734914934548,0.211057,94762.0,94748.0,0.311086]
[1734914934726,0.00527023,94761.0,94750.0,0.211081]
[1734914934928,0.21103,94773.0,94757.0,0.211065]
[1734914935156,0.21119195,94773.0,94757.0,0.211065]
[1734914935355,0.00525489,94772.0,94748.0,0.1]
[1734914935511,0.00525489,94772.0,94758.0,0.211063]
[1734914935945,0.00525489,94772.0,94768.0,0.02115671]
[1734914935946,0.211035,94771.0,94768.0,0.02115671]
[1734914936148,0.211035,94771.0,94749.0,0.211084]
[1734914936149,0.211053,94763.0,94749.0,0.211084]
[1734914936381,0.0768,94762.0,94744.0,0.0122492]
[1734914936599,0.211057,94761.0,94757.0,0.004]
[1734914936798,0.08207071,94762.0,94738.0,0.211107]
[1734914936799,0.211077,94752.0,94738.0,0.211107]
[1734914936974,0.00526863,94760.0,94739.0,0.76546]
[1734914937179,0.00524106,94751.0,94748.0,0.211084]
[1734914937499,0.0768,94762.0,94748.0,0.211084]
[1734914937728,0.0768,94762.0,94746.0,0.211089]
[1734914937949,0.00524588,94761.0,94746.0,0.211089]
[1734914938566,0.211059,94760.0,94746.0,0.211089]
[1734914938776,0.00524588,94761.0,94746.0,0.211089]
[1734914938987,0.00524492,94759.0,94746.0,0.422178]
[1734914939186,0.0052454,94760.0,94750.0,0.02146728]
[1734914939386,0.0768,94762.0,94751.0,0.211079]
[1734914939589,0.00524492,94759.0,94751.0,0.211079]
[1734914939810,0.00524588,94761.0,94751.0,0.211079]
[1734914940009,0.0768,94762.0,94751.0,0.211079]
[1734914940122,0.0052454,94760.0,94751.0,0.211079]
[1734914940323,0.00524588,94761.0,94752.0,0.682922]
[1734914940571,0.00524492,94759.0,94757.0,0.211064]
[1734914940772,0.00016195,94773.0,94765.0,0.211046]
[1734914941037,0.00523409,94772.0,94765.0,0.211046]
[1734914941541,0.00523409,94772.0,94757.0,0.211064]
[1734914941773,0.00523409,94772.0,94759.0,0.211061]
[1734914941978,8.55e-05,94789.0,94773.0,0.1]
[1734914942175,8.55e-05,94789.0,94788.0,0.1]
[1734914942390,0.0119016,94798.0,94788.0,0.1]
[1734914942589,7e-05,94800.0,94795.0,0.21098]
[1734914943576,7e-05,94800.0,94792.0,0.15]
[1734914943782,7e-05,94800.0,94795.0,0.001]
[1734914944012,7e-05,94800.0,94795.0,0.210981]
[1734914944293,7e-05,94800.0,94795.0,0.212981]
[1734914944602,7e-05,94800.0,94795.0,0.423962]
[1734914945377,7e-05,94800.0,94799.0,0.02141214]
[1734914946517,0.0001555,94800.0,94799.0,0.02141214]
[1734914946954,0.0001555,94800.0,94799.0,0.02441214]
[1734914952357,0.0001555,94800.0,94799.0,0.03956375]
[1734914952518,0.0001555,94800.0,94799.0,0.02441214]
[1734914955666,0.0001555,94800.0,94799.0,0.46318314]
[1734914956076,0.0001555,94800.0,94799.0,0.44279414]
[1734914956876,0.0001555,94800.0,94799.0,0.02441214]
[1734914957829,0.0001555,94800.0,94799.0,0.003]
[1734914958101,0.2026639,94800.0,94799.0,0.003]
[1734914958852,0.211008,94783.0,94782.0,0.02101642]
[1734914959089,0.289208,94783.0,94782.0,0.02101642]
[1734914959349,0.361608,94783.0,94782.0,0.02101642]
[1734914959879,0.211021,94777.0,94761.0,0.211057]
[1734914960120,0.21101,94782.0,94766.0,0.211044]
[1734914960629,0.21101,94782.0,94760.0,0.05328962]
[1734914960839,0.211023,94777.0,94776.0,0.02133701]
[1734914961171,0.21101,94782.0,94776.0,0.02133701]
[1734914963549,0.0782,94783.0,94776.0,0.02133701]
[1734914963783,0.421976,94792.0,94776.0,0.02133701]
[1734914963984,0.210988,94792.0,94780.0,0.12843416]
[1734914964522,0.210988,94792.0,94777.0,0.211021]
[1734914964727,0.210988,94792.0,94776.0,0.02133701]
[1734914965241,0.421976,94792.0,94776.0,0.02133701]
[1734914966050,0.430976,94792.0,94776.0,0.02233701]
[1734914966282,0.421976,94792.0,94776.0,0.02133701]
[1734914966665,0.430976,94792.0,94776.0,0.02233701]
[1734914967252,0.421976,94792.0,94776.0,0.02133701]
[1734914967690,0.211001,94787.0,94774.0,0.22600752]
[1734914968040,0.210988,94792.0,94775.0,0.200081]
[1734914968245,0.210988,94792.0,94776.0,0.211023]
[1734914968772,0.210988,94792.0,94776.0,0.212023]
[1734914968982,0.210988,94792.0,94780.0,0.12843416]
[1734914969478,0.210988,94792.0,94777.0,0.211021]
[1734914969646,0.210988,94792.0,94786.0,0.0214659]
[1734914970175,0.21099,94791.0,94786.0,0.0214659]
[1734914970549,0.0785,94793.0,94786.0,0.0214659]
[1734914972171,0.210988,94792.0,94786.0,0.0224659]
[1734914972369,0.210992,94790.0,94786.0,0.0214659]
[1734914972573,0.421984,94790.0,94786.0,0.0214659]
[1734914972771,0.1012,94787.0,94786.0,0.001]
[1734914972979,0.20382724,94787.0,94786.0,0.001]
[1734914973186,0.211023,94776.0,94775.0,0.0208913]
[1734914974998,0.292623,94776.0,94775.0,0.000171]
[1734914975397,0.4169314,94776.0,94775.0,0.000171]
[1734914975882,0.4179314,94776.0,94775.0,0.000171]
[1734914976055,0.4169314,94776.0,94775.0,0.000171]
[1734914976424,0.7128314,94776.0,94775.0,0.000171]
[1734914976840,0.7148314,94776.0,94775.0,0.000171]
[1734914977674,0.62965241,94776.0,94775.0,0.000171]
[1734914978177,0.62765241,94776.0,94775.0,0.000171]
[1734914978603,0.63665241,94776.0,94775.0,0.001171]
[1734914979395,0.4718314,94776.0,94775.0,0.001171]
[1734914979550,0.4488314,94776.0,94775.0,0.001171]
[1734914980382,0.5488314,94776.0,94775.0,0.001171]
[1734914980788,0.5718314,94776.0,94775.0,0.001171]
[1734914981403,0.5628314,94776.0,94775.0,0.000171]
[1734914981793,0.5718314,94776.0,94775.0,0.001171]
[1734914986244,0.4718314,94776.0,94775.0,0.001171]
[1734914986497,0.4488314,94776.0,94775.0,0.001171]
[1734914986706,0.4029314,94776.0,94775.0,0.001171]
[1734914987951,0.4259314,94776.0,94775.0,0.001171]
[1734914990376,0.5723314,94776.0,94775.0,0.001171]
[1734914990777,0.4723314,94776.0,94775.0,0.001171]
[1734914991242,0.6223314,94776.0,94775.0,0.001171]
[1734914991719,0.7223314,94776.0,94775.0,0.001171]
[1734914993330,0.74148615,94776.0,94775.0,0.001171]
[1734914993551,0.64148615,94776.0,94775.0,0.001171]
[1734914993847,0.74148615,94776.0,94775.0,0.001171]
[1734914994868,0.314557,94761.0,94760.0,0.00033315]
[1734914995076,0.4158654,94761.0,94760.0,0.00033315]
[1734914996251,0.4188654,94761.0,94760.0,0.00033315]
[1734914996652,0.4666654,94761.0,94760.0,0.00033315]
[1734914996853,0.5666654,94761.0,94760.0,0.00033315]
[1734914997067,0.7166654,94761.0,94760.0,1.5e-07]
[1734914997703,0.7136654,94761.0,94760.0,1.5e-07]
[1734914997909,0.7166654,94761.0,94760.0,1.5e-07]
[1734914998305,0.7136654,94761.0,94760.0,1.5e-07]
[1734914998548,0.7226654,94761.0,94760.0,0.00100015]
[1734914998959,0.7136654,94761.0,94760.0,1.5e-07]
[1734914999139,0.7226654,94761.0,94760.0,0.00100015]
[1734914999517,0.7226654,94761.0,94760.0,1.5e-07]
[1734914999734,0.273,94758.0,94757.0,1.5e-07]
[1734914999935,0.4509084,94758.0,94757.0,1.5e-07]
[1734915001110,0.3509084,94758.0,94757.0,1.5e-07]
[1734915001266,0.3279084,94758.0,94757.0,1.5e-07]
[1734915001893,0.4279084,94758.0,94757.0,1.5e-07]
[1734915002358,0.4369084,94758.0,94757.0,0.00100015]
[1734915002566,0.4599084,94758.0,94757.0,1.5e-07]
[1734915003115,0.3599084,94758.0,94757.0,1.5e-07]
[1734915003323,0.3369084,94758.0,94757.0,1.5e-07]
[1734915004588,0.4599084,94758.0,94757.0,1.5e-07]
[1734915004748,0.6072084,94758.0,94757.0,1.5e-07]
[1734915004984,0.234126,94730.0,94710.0,0.02087306]
[1734915005168,0.4150344,94730.0,94710.0,0.02087306]
[1734915006402,0.41909132,94730.0,94710.0,0.02087306]
[1734915006762,0.41509132,94730.0,94710.0,0.02087306]
[1734915007114,0.41509132,94730.0,94696.0,0.079]
[1734915008096,0.42109132,94730.0,94696.0,0.079]
[1734915008291,0.42109132,94730.0,94714.0,0.01934237]
[1734915008836,0.42809132,94730.0,94714.0,0.01934237]
[1734915009023,0.41509132,94730.0,94714.0,0.01934237]
[1734915009562,0.42309132,94730.0,94714.0,0.01934237]
[1734915009762,0.41509132,94730.0,94714.0,0.01934237]
[1734915009967,0.42209132,94730.0,94714.0,0.01934237]
[1734915010919,0.52209132,94730.0,94729.0,8e-07]
[1734915011123,0.67209132,94730.0,94729.0,8e-07]
[1734915011481,0.71139132,94730.0,94729.0,8e-07]
[1734915011635,0.71939132,94730.0,94729.0,8e-07]
[1734915011975,0.81269972,94730.0,94729.0,8e-07]
[1734915012139,0.71139132,94730.0,94729.0,8e-07]
[1734915012355,0.71839132,94730.0,94729.0,8e-07]
[1734915012660,0.71139132,94730.0,94729.0,8e-07]
[1734915012859,0.73027793,94730.0,94729.0,8e-07]